lending/lending_fUSD_20251116
["ID","MTS","AMOUNT","RATE_DAILY","PERIOD"]
[394146625,1763322640496,-205.59,0.00032235,2]
[394146626,1763322640506,-168.0,0.0003238,2]
[394146627,1763322640515,-150.0,0.000324,7]
[394146628,1763322640525,-150.0,0.000324,7]
[394146629,1763322640542,-26676.6713229,0.00032452,3]
[394146630,1763322640562,-23601.5693292,0.00032462,2]
[394146631,1763322640576,-849.632393,0.00032462,2]
[394146632,1763322640586,-45194.4961391,0.00032564,2]
[394146633,1763322640596,-152.0,0.00032594,3]
[394146634,1763322640607,-2000.0,0.000327,2]
[394146635,1763322640619,-160.26946119,0.00032777,4]
[394146636,1763322640630,-168.0,0.00032796,2]
[394146637,1763322640640,-500.0,0.00032877,7]
[394146638,1763322640649,-500.0,0.00032877,7]
[394146639,1763322640660,-500.0,0.00032877,7]
[394146640,1763322640670,-500.0,0.00032877,7]
[394146641,1763322640682,-500.0,0.00032877,7]
[394146642,1763322640691,-500.0,0.00032877,7]
[394146643,1763322640702,-277.08105166,0.00032877,7]
[394146644,1763322640713,-500.0,0.00032877,7]
[394146645,1763322640724,-500.0,0.00032877,7]
[394146646,1763322640734,-887.7,0.000329,2]
[394146647,1763322640743,-500.0,0.00032932,2]
[394146648,1763322640753,-20158.49831415,0.00032965,2]
[394146649,1763322640763,-174.68,0.00032976,30]
[394146650,1763322640772,-166.36857467,0.00033,120]
[394146651,1763322640782,-500.0,0.00033042,60]
[394146652,1763322640792,-150.0,0.00033042,60]
[394146653,1763322640801,-150.0,0.00033042,60]
[394146654,1763322640811,-150.0,0.00033042,60]
[394146655,1763322640821,-150.0,0.00033042,60]
[394146656,1763322640831,-150.0,0.00033042,60]
[394146657,1763322640840,-150.0,0.00033042,60]
[394146658,1763322640850,-150.0,0.00033042,60]
[394146659,1763322640860,-500.0,0.00033042,60]
[394146660,1763322640870,-150.0,0.00033042,2]
[394146661,1763322640880,-150.0,0.00033042,60]
[394146662,1763322640890,-150.0,0.00033042,60]
[394146663,1763322640899,-500.0,0.00033042,2]
[394146664,1763322640908,-496.0,0.00033042,60]
[394146665,1763322640917,-500.0,0.00033042,2]
[394146666,1763322641067,-151.0,0.00033075,31]
[394146667,1763322641077,-151.0,0.00033075,10]
[394146668,1763322641086,-151.0,0.00033075,31]
[394146669,1763322641098,-193.006912,0.00033075,10]
[394146670,1763322641108,-151.0,0.00033075,30]
[394146671,1763322641120,-151.0,0.00033075,31]
[394146672,1763322641130,-151.0,0.00033075,31]
[394146673,1763322641140,-151.0,0.00033075,31]
[394146674,1763322641150,-151.0,0.00033075,31]
[394146675,1763322641160,-151.0,0.00033075,31]
[394146676,1763322641170,-151.0,0.00033075,31]
[394146677,1763322641179,-151.0,0.00033075,31]
[394146678,1763322641188,-255.685735,0.00033075,31]
[394146679,1763322641198,-3447.73130244,0.00033075,2]
[394146680,1763322641208,-168.0,0.00033082,2]
[394146681,1763322641218,-500.0,0.00033097,60]
[394146682,1763322641227,-150.0,0.00033097,60]
[394146683,1763322641237,-500.0,0.00033097,60]
[394146684,1763322641246,-500.0,0.00033097,2]
[394146685,1763322641255,-496.0,0.00033097,60]
[394146686,1763322641265,-500.0,0.00033097,2]
[394146687,1763322641274,-168.0,0.00033099,2]
[394146688,1763322641283,-488.0,0.0003315,7]
[394146689,1763322641293,-500.0,0.00033152,60]
[394146690,1763322641302,-150.0,0.00033152,60]
[394146691,1763322641311,-500.0,0.00033152,60]
[394146692,1763322641321,-500.0,0.00033152,2]
[394146693,1763322641331,-496.0,0.00033152,60]
[394146694,1763322641341,-500.0,0.00033152,2]
[394146695,1763322641350,-630.79,0.00033165,2]
[394146696,1763322641359,-500.0,0.00033206,60]
[394146697,1763322641369,-150.0,0.00033206,60]
[394146698,1763322641380,-500.0,0.00033206,60]
[394146699,1763322641390,-500.0,0.00033206,2]
[394146700,1763322641400,-496.0,0.00033206,60]
[394146701,1763322641411,-500.0,0.00033206,2]
[394146702,1763322641420,-616.22593712,0.00033208,2]
[394146703,1763322641430,-500.0,0.00033261,60]
[394146704,1763322641440,-166.59711047,0.00033261,60]
[394146705,1763322641451,-500.0,0.00033261,60]
[394146706,1763322641461,-500.0,0.00033261,2]
[394146707,1763322641471,-496.0,0.00033261,60]
[394146708,1763322641480,-500.0,0.00033261,2]
[394146709,1763322641490,-598.73,0.000333,30]
[394146710,1763322641499,-500.0,0.00033316,60]
[394146711,1763322641509,-500.0,0.00033316,60]
[394146712,1763322641519,-500.0,0.00033316,2]
[394146713,1763322641528,-496.0,0.00033316,60]
[394146714,1763322641538,-500.0,0.00033316,2]
[394146715,1763322641547,-168.0,0.00033362,2]
[394146716,1763322641557,-500.0,0.00033371,60]
[394146717,1763322641566,-500.0,0.00033371,60]
[394146718,1763322641576,-500.0,0.00033371,2]
[394146719,1763322641585,-496.0,0.00033371,60]
[394146720,1763322641597,-500.0,0.00033371,2]
[394146721,1763322641608,-500.0,0.00033426,60]
[394146722,1763322641617,-500.0,0.00033426,60]
[394146723,1763322641628,-500.0,0.00033426,2]
[394146724,1763322641639,-496.0,0.00033426,60]
[394146725,1763322641650,-500.0,0.00033426,2]
[394146726,1763322641660,-151.0,0.0003348,31]
[394146727,1763322641671,-614.064354,0.0003348,31]
[394146728,1763322641681,-614.064354,0.0003348,31]
[394146729,1763322641691,-614.064354,0.0003348,31]
[394146730,1763322641702,-614.064354,0.0003348,31]
[394146731,1763322641712,-1695.742304,0.0003348,31]
[394146732,1763322641722,-155.46606,0.0003348,31]
[394146733,1763322641732,-1695.742304,0.0003348,31]
[394146734,1763322641742,-1695.742304,0.0003348,31]
[394146735,1763322641751,-151.0,0.0003348,31]
[394146736,1763322641761,-1695.742304,0.0003348,31]
[394146737,1763322641770,-151.0,0.0003348,31]
[394146738,1763322641779,-386.376677,0.0003348,31]
[394146739,1763322641788,-386.376677,0.0003348,31]
[394146740,1763322641798,-386.376677,0.0003348,31]
[394146741,1763322641807,-386.376677,0.0003348,31]
[394146742,1763322641816,-151.0,0.0003348,31]
[394146743,1763322641825,-151.0,0.0003348,31]
[394146744,1763322641837,-151.0,0.0003348,31]
[394146745,1763322641847,-151.0,0.0003348,31]
[394146746,1763322641857,-151.0,0.0003348,31]
[394146747,1763322641866,-151.0,0.0003348,31]
[394146748,1763322641878,-151.0,0.0003348,31]
[394146749,1763322641887,-151.0,0.0003348,31]
[394146750,1763322641897,-151.0,0.0003348,31]
[394146751,1763322641908,-151.0,0.0003348,31]
[394146752,1763322641918,-151.0,0.0003348,31]
[394146753,1763322641928,-500.0,0.0003348,60]
[394146754,1763322641937,-500.0,0.0003348,60]
[394146755,1763322641947,-234.22497362,0.0003348,2]
[394146756,1763322641956,-496.0,0.0003348,60]
[394146757,1763322641966,-608.0,0.00033493,2]
[394146758,1763322641975,-3430.0,0.00033493,2]
[394146759,1763322641985,-1318.0,0.00033493,2]
[394146760,1763322641994,-575.0,0.00033493,2]
[394146761,1763322642003,-821.0,0.00033493,2]
[394146762,1763322642013,-1599.0,0.00033493,2]
[394146763,1763322642022,-907.0,0.00033493,2]
[394146764,1763322642031,-793.0,0.00033493,2]
[394146765,1763322642041,-1275.0,0.00033493,2]
[394146766,1763322642051,-1604.0,0.00033493,2]
[394146767,1763322642061,-500.0,0.00033535,60]
[394146768,1763322642070,-262.03190199,0.00033535,60]
[394146769,1763322642080,-496.0,0.00033535,60]
[394146770,1763322642089,-500.0,0.0003359,60]
[394146771,1763322642099,-496.0,0.0003359,60]
[394146772,1763322642108,-500.0,0.00033645,60]
[394146773,1763322642118,-496.0,0.00033645,60]
[394146774,1763322642127,-500.0,0.000337,60]
[394146775,1763322642137,-496.0,0.000337,60]
[394146776,1763322642146,-168.0,0.00033713,2]
[394146777,1763322642156,-347.64330208,0.00033716,2]
[394146778,1763322642165,-322.6107,0.00033716,2]
[394146779,1763322642175,-250.0,0.00033716,2]
[394146780,1763322642184,-250.0,0.00033716,2]
[394146781,1763322642194,-250.0,0.00033716,2]
[394146783,1763322642204,-250.0,0.00033716,2]
[394146784,1763322642215,-250.0,0.00033716,2]
[394146785,1763322642226,-337.84606576,0.00033716,2]
[394146786,1763322642236,-250.0,0.00033716,2]
[394146787,1763322642245,-250.0,0.00033716,2]
[394146788,1763322642255,-250.0,0.00033716,2]
[394146789,1763322642264,-250.0,0.00033716,2]
[394146790,1763322642273,-500.0,0.00033716,2]
[394146791,1763322642283,-250.0,0.00033716,2]
[394146792,1763322642292,-500.0,0.00033716,2]
[394146794,1763322642302,-250.0,0.00033716,2]
[394146795,1763322642311,-500.0,0.00033716,2]
[394146796,1763322642322,-500.0,0.00033716,2]
[394146797,1763322642332,-500.0,0.00033716,2]
[394146798,1763322642342,-1000.0,0.00033716,2]
[394146799,1763322642353,-500.0,0.00033716,2]
[394146801,1763322642363,-1000.0,0.00033716,2]
[394146803,1763322642374,-568.03051561,0.00033716,2]
[394146804,1763322642383,-500.0,0.00033716,2]
[394146805,1763322642393,-1000.0,0.00033716,2]
[394146806,1763322642406,-500.0,0.00033716,2]
[394146807,1763322642416,-1000.0,0.00033716,2]
[394146808,1763322642425,-500.0,0.00033716,2]
[394146809,1763322642435,-1000.0,0.00033716,2]
[394146810,1763322642446,-2000.0,0.00033716,2]
[394146811,1763322642455,-500.0,0.00033716,2]
[394146812,1763322642466,-1000.0,0.00033716,2]
[394146813,1763322642481,-2000.0,0.00033716,2]
[394146814,1763322642490,-500.0,0.00033716,2]
[394146815,1763322642500,-1000.0,0.00033716,2]
[394146816,1763322642510,-2000.0,0.00033716,2]
[394146817,1763322642519,-500.0,0.00033716,2]
[394146818,1763322642530,-1000.0,0.00033716,2]
[394146819,1763322642540,-2000.0,0.00033716,2]
[394146820,1763322642550,-500.0,0.00033716,2]
[394146821,1763322642559,-1000.0,0.00033716,2]
[394146822,1763322642569,-2000.0,0.00033716,2]
[394146823,1763322642579,-500.0,0.00033716,2]
[394146824,1763322642588,-1000.0,0.00033716,2]
[394146825,1763322642597,-2000.0,0.00033716,2]
[394146826,1763322642607,-500.0,0.00033716,2]
[394146828,1763322642616,-1000.0,0.00033716,2]
[394146829,1763322642625,-2000.0,0.00033716,2]
[394146830,1763322642635,-402.54326302,0.00033716,2]
[394146831,1763322642644,-2000.0,0.00033716,2]
[394146832,1763322642654,-151.0,0.00033716,2]
[394146833,1763322642665,-574.12855637,0.00033716,2]
[394146834,1763322642674,-2000.0,0.00033716,2]
[394146835,1763322642683,-2000.0,0.00033716,2]
[394146836,1763322642693,-2000.0,0.00033716,2]
[394146837,1763322642702,-250.0,0.00033716,2]
[394146838,1763322642713,-500.0,0.00033716,2]
[394146839,1763322642724,-250.0,0.00033716,2]
[394146840,1763322642733,-500.0,0.00033716,2]
[394146841,1763322642743,-250.0,0.00033716,2]
[394146842,1763322642752,-500.0,0.00033716,2]
[394146843,1763322642762,-250.0,0.00033716,2]
[394146844,1763322642772,-500.0,0.00033716,2]
[394146845,1763322642782,-250.0,0.00033716,2]
[394146846,1763322642791,-250.0,0.00033716,2]
[394146847,1763322642800,-500.0,0.00033716,2]
[394146848,1763322642810,-250.0,0.00033716,2]
[394146849,1763322642819,-250.0,0.00033716,2]
[394146850,1763322642829,-151.0,0.00033716,2]
[394146851,1763322642838,-250.0,0.00033716,2]
[394146852,1763322642848,-500.0,0.00033716,2]
[394146853,1763322642858,-250.0,0.00033716,2]
[394146854,1763322642868,-156.587,0.00033716,2]
[394146855,1763322642878,-250.0,0.00033716,2]
[394146856,1763322642888,-250.0,0.00033716,2]
[394146857,1763322642897,-250.0,0.00033716,2]
[394146858,1763322642907,-311.84574709,0.00033716,2]
[394146859,1763322642917,-250.0,0.00033716,2]
[394146860,1763322642926,-250.0,0.00033716,2]
[394146861,1763322642936,-250.0,0.00033716,2]
[394146862,1763322642945,-250.0,0.00033716,2]
[394146863,1763322642955,-161.0,0.00033716,2]
[394146864,1763322642965,-250.0,0.00033716,2]
[394146865,1763322642974,-250.0,0.00033716,2]
[394146866,1763322642983,-500.0,0.00033716,2]
[394146867,1763322642992,-277.35679052,0.00033716,2]
[394146868,1763322643002,-500.0,0.00033754,60]
[394146869,1763322643012,-496.0,0.00033754,60]
[394146870,1763322643022,-887.7,0.000338,2]
[394146871,1763322643031,-497.0,0.00033809,60]
[394146872,1763322643042,-496.0,0.00033809,60]
[394146873,1763322643051,-496.0,0.00033864,60]
[394146874,1763322643061,-1432.1929251,0.00033891,2]
[394146875,1763322643070,-166.36857467,0.000339,120]
[394146876,1763322643212,-496.0,0.00033919,60]
[394146877,1763322643223,-488.0,0.00033972,8]
[394146878,1763322643234,-496.0,0.00033974,60]
[394146879,1763322643245,-1144.09,0.00034027,37]
[394146880,1763322643256,-496.0,0.00034028,60]
[394146881,1763322643265,-496.0,0.00034083,60]
[394146882,1763322643275,-168.0,0.00034084,2]
[394146883,1763322643284,-496.0,0.00034138,60]
[394146884,1763322643294,-158.71330448,0.00034154,15]
[394146885,1763322643303,-496.0,0.00034193,60]
[394146886,1763322643313,-152.0,0.00034231,4]
[394146887,1763322643322,-496.0,0.00034247,60]
[394146888,1763322643332,-595.37131296,0.00034264,2]
[394146889,1763322643342,-503.96978978,0.00034302,60]
[394146890,1763322643352,-174.68,0.00034396,30]
[394146891,1763322643362,-168.0,0.00034414,2]
[394146892,1763322643371,-170.26,0.00034549,2]
[394146893,1763322643380,-9427.0,0.00034551,5]
[394146894,1763322643391,-168.0,0.00034589,2]
[394146895,1763322643402,-20158.49831415,0.00034649,2]
[394146896,1763322643416,-190.18,0.000347,14]
[394146897,1763322643427,-887.7,0.000347,2]
[394146898,1763322643438,-168.0,0.00034724,2]
[394146899,1763322643450,-3447.73130244,0.00034781,2]
[394146900,1763322643460,-488.0,0.00034794,9]
[394146901,1763322643470,-617.40005154,0.00034812,2]
[394146902,1763322643481,-170.26,0.00034867,2]
[394146903,1763322643497,-166.36857467,0.00035,120]
[394146904,1763322643508,-334.5472959,0.00035085,2]
[394146905,1763322643518,-151.0,0.00035085,2]
[394146906,1763322643528,-287.61899177,0.00035085,2]
[394146907,1763322643537,-371.02254175,0.0003512,2]
[394146908,1763322643547,-210593.1906751,0.00035131,2]
[394146909,1763322643557,-168.0,0.00035141,2]
[394146910,1763322643566,-170.26,0.00035186,2]
[394146911,1763322643576,-168.0,0.00035194,2]
[394146912,1763322643586,-168.0,0.00035215,2]
[394146913,1763322643595,-537.06,0.00035259,2]
[394146914,1763322643604,-640.24385345,0.0003536,2]
[394146915,1763322643614,-384.76,0.00035445,120]
[394146916,1763322643623,-190.18,0.000355,14]
[394146917,1763322643632,-537.06,0.00035504,2]
[394146918,1763322643642,-1000.0,0.00035616,2]
[394146919,1763322643651,-1000.0,0.00035616,2]
[394146920,1763322643660,-6000.0,0.00035616,5]
[394146921,1763322643669,-628.05,0.00035616,2]
[394146922,1763322643678,-3968.47,0.00035616,2]
[394146923,1763322643687,-500.0,0.00035616,2]
[394146924,1763322643696,-300.0,0.00035616,2]
[394146925,1763322643705,-488.0,0.00035616,10]
[394146926,1763322643715,-150.0,0.00035616,15]
[394146927,1763322643725,-150.0,0.00035671,15]
[394146928,1763322643734,-1287.7,0.00035698,30]
[394146929,1763322643743,-150.0,0.00035726,15]
[394146930,1763322643752,-500.0,0.00035736,13]
[394146931,1763322643762,-500.0,0.00035736,13]
[394146932,1763322643771,-500.0,0.00035736,13]
[394146933,1763322643781,-500.0,0.00035736,13]
[394146934,1763322643790,-500.0,0.00035736,13]
[394146935,1763322643799,-500.0,0.00035736,13]
[394146936,1763322643808,-500.0,0.00035736,13]
[394146937,1763322643817,-500.0,0.00035736,13]
[394146938,1763322643828,-537.06,0.00035749,2]
[394146939,1763322643837,-208.22224658,0.0003578,15]
[394146940,1763322643847,-174.68,0.00035817,60]
[394146941,1763322643856,-152.0,0.00035868,5]
[394146942,1763322643866,-1195.10021,0.00035888,30]
[394146943,1763322643875,-942.31535495,0.0003589,2]
[394146944,1763322643884,-226.0,0.0003589,5]
[394146945,1763322643894,-628.05,0.0003589,2]
[394146946,1763322643904,-3968.47,0.0003589,2]
[394146947,1763322643914,-500.0,0.0003589,2]
[394146948,1763322643923,-300.0,0.0003589,2]
[394146950,1763322643933,-581.0,0.0003589,30]
[394146952,1763322643942,-2000.0,0.000359,13]
[394146954,1763322643952,-663.93287602,0.00035908,2]
[394146955,1763322643962,-209.7387154,0.00035993,120]
[394146957,1763322643972,-150.0,0.00036,7]
[394146959,1763322643981,-231721.36829206,0.00036,2]
[394146960,1763322643991,-10722.81844621,0.00036,2]
[394146961,1763322644000,-210.12,0.00036,120]
[394146962,1763322644010,-151.0,0.00036,31]
[394146963,1763322644019,-151.0,0.00036,31]
[394146964,1763322644029,-153.714524,0.00036,31]
[394146965,1763322644038,-151.0,0.00036,31]
[394146966,1763322644047,-151.0,0.00036,31]
[394146967,1763322644056,-151.0,0.00036,31]
[394146968,1763322644065,-151.0,0.00036,31]
[394146969,1763322644074,-151.0,0.00036,31]
[394146970,1763322644084,-151.0,0.00036,31]
[394146971,1763322644093,-238.280724,0.00036,31]
[394146972,1763322644102,-151.0,0.00036,31]
[394146973,1763322644112,-238.280724,0.00036,31]
[394146974,1763322644120,-151.0,0.00036,31]
[394146975,1763322644130,-238.280724,0.00036,31]
[394146976,1763322644142,-151.0,0.00036,31]
[394146977,1763322644161,-238.280724,0.00036,31]
[394146978,1763322644176,-151.0,0.00036,31]
[394146979,1763322644194,-151.0,0.00036,31]
[394146980,1763322644211,-153.687711,0.00036,31]
[394146981,1763322644226,-151.0,0.00036,31]
[394146982,1763322644240,-151.0,0.00036,31]
[394146983,1763322644256,-174.145706,0.00036,31]
[394146984,1763322644273,-151.0,0.00036,31]
[394146985,1763322644290,-151.0,0.00036,31]
[394146986,1763322644307,-281.145595,0.00036,31]
[394146987,1763322644324,-151.0,0.00036,31]
[394146988,1763322644340,-151.0,0.00036,31]
[394146989,1763322644358,-151.0,0.00036,31]
[394146990,1763322644374,-151.0,0.00036,31]
[394146991,1763322644387,-151.0,0.00036,15]
[394146992,1763322644407,-151.0,0.00036,15]
[394146993,1763322644421,-151.0,0.00036,15]
[394146994,1763322644436,-151.0,0.00036,31]
[394146995,1763322644455,-239.166881,0.00036,15]
[394146996,1763322644467,-151.0,0.00036,31]
[394146997,1763322644483,-151.0,0.00036,31]
[394146998,1763322644499,-151.0,0.00036,31]
[394146999,1763322644512,-151.0,0.00036,31]
[394147000,1763322644527,-151.0,0.00036,31]
[394147001,1763322644542,-151.0,0.00036,31]
[394147002,1763322644556,-581.0,0.00036,30]
[394147003,1763322644569,-191.0,0.00036,30]
[394147004,1763322644584,-25000.0,0.00036025,2]
[394147005,1763322644599,-151.0,0.00036025,31]
[394147006,1763322644616,-183.538171,0.00036025,31]
[394147007,1763322644630,-151.0,0.00036025,31]
[394147008,1763322644644,-151.0,0.00036025,31]
[394147009,1763322644658,-151.0,0.00036025,31]
[394147010,1763322644673,-244.10011,0.00036025,31]
[394147011,1763322644688,-151.0,0.00036025,31]
[394147012,1763322644702,-151.0,0.00036025,31]
[394147013,1763322644717,-151.0,0.00036025,31]
[394147014,1763322644736,-169.198971,0.00036025,31]
[394147015,1763322644750,-153.818967,0.00036025,31]
[394147016,1763322644764,-5000.0,0.00036041,2]
[394147017,1763322644779,-5000.0,0.00036062,2]
[394147018,1763322644793,-750.67,0.00036064,2]
[394147019,1763322644807,-5000.0,0.00036065,2]
[394147020,1763322644821,-151.0,0.00036065,31]
[394147021,1763322644837,-164.04266,0.00036065,31]
[394147022,1763322644851,-5000.0,0.00036067,2]
[394147023,1763322644866,-160.745587,0.00036067,31]
[394147024,1763322644880,-151.0,0.00036067,31]
[394147025,1763322644896,-151.0,0.00036067,31]
[394147026,1763322644911,-238.181119,0.00036067,31]
[394147027,1763322644925,-5000.0,0.00036072,2]
[394147028,1763322644939,-5000.0,0.00036081,2]
[394147029,1763322644953,-1195.10021,0.00036088,30]
[394147030,1763322644967,-79879.69048628,0.000361,2]
[394147031,1763322644983,-628.05,0.00036164,2]
[394147032,1763322644997,-3968.47,0.00036164,2]
[394147033,1763322645011,-500.0,0.00036164,2]
[394147034,1763322645024,-300.0,0.00036164,2]
[394147035,1763322645038,-255.11324493,0.00036176,2]
[394147036,1763322645051,-5000.0,0.0003618,2]
[394147037,1763322645065,-5000.0,0.00036186,2]
[394147038,1763322645079,-25000.0,0.000362,2]
[394147039,1763322645092,-151.0,0.000362,31]
[394147040,1763322645106,-151.0,0.000362,31]
[394147041,1763322645119,-151.0,0.000362,31]
[394147042,1763322645133,-151.0,0.000362,31]
[394147043,1763322645148,-151.0,0.000362,31]
[394147044,1763322645163,-151.811139,0.000362,31]
[394147045,1763322645176,-151.0,0.000362,31]
[394147046,1763322645189,-151.0,0.000362,31]
[394147047,1763322645203,-151.0,0.000362,31]
[394147048,1763322645217,-151.0,0.000362,30]
[394147049,1763322645231,-151.0,0.000362,31]
[394147050,1763322645245,-151.0,0.000362,31]
[394147051,1763322645259,-151.0,0.000362,31]
[394147052,1763322645274,-151.0,0.000362,31]
[394147053,1763322645287,-535.426741,0.000362,31]
[394147054,1763322645302,-151.0,0.000362,31]
[394147055,1763322645316,-535.426741,0.000362,31]
[394147056,1763322645330,-180.093633,0.000362,31]
[394147057,1763322645343,-535.426741,0.000362,31]
[394147058,1763322645361,-151.0,0.000362,31]
[394147059,1763322645376,-535.426741,0.000362,31]
[394147060,1763322645392,-151.0,0.000362,31]
[394147061,1763322645408,-151.0,0.000362,31]
[394147062,1763322645425,-5000.0,0.00036202,2]
[394147063,1763322645441,-5000.0,0.00036234,2]
[394147064,1763322645454,-5000.0,0.00036237,2]
[394147065,1763322645465,-5000.0,0.00036259,2]
[394147066,1763322645477,-174.433953,0.00036259,31]
[394147067,1763322645487,-174.433953,0.00036259,31]
[394147068,1763322645497,-174.433953,0.00036259,31]
[394147069,1763322645507,-174.433953,0.00036259,31]
[394147070,1763322645758,-151.0,0.00036259,31]
[394147071,1763322645796,-151.0,0.00036259,31]
[394147072,1763322645808,-151.0,0.00036259,31]
[394147073,1763322645818,-151.0,0.00036259,31]
[394147074,1763322645828,-235.011081,0.00036259,31]
[394147075,1763322645838,-151.0,0.00036259,31]
[394147076,1763322645847,-235.011081,0.00036259,31]
[394147077,1763322645858,-180.69634,0.00036259,31]
[394147078,1763322645867,-235.011081,0.00036259,31]
[394147079,1763322645877,-188.279895,0.00036259,31]
[394147080,1763322645887,-151.0,0.00036259,31]
[394147081,1763322645896,-235.011081,0.00036259,31]
[394147082,1763322645905,-151.0,0.00036259,31]
[394147083,1763322645915,-166.199414,0.00036259,31]
[394147084,1763322645926,-151.0,0.00036259,31]
[394147085,1763322645935,-188.279895,0.00036259,31]
[394147086,1763322645944,-151.0,0.00036259,31]
[394147087,1763322645954,-151.0,0.00036259,31]
[394147088,1763322645963,-151.0,0.00036259,31]
[394147089,1763322645973,-151.0,0.00036259,31]
[394147090,1763322645983,-188.279895,0.00036259,31]
[394147091,1763322645992,-225.770558,0.00036259,31]
[394147092,1763322646002,-151.0,0.00036259,31]
[394147093,1763322646012,-188.279895,0.00036259,31]
[394147094,1763322646022,-315.691335,0.00036259,30]
[394147095,1763322646031,-151.0,0.00036259,31]
[394147096,1763322646041,-159.659107,0.00036259,31]
[394147097,1763322646050,-151.0,0.00036259,31]
[394147098,1763322646059,-315.691335,0.00036259,30]
[394147099,1763322646068,-315.691335,0.00036259,30]
[394147100,1763322646077,-315.691335,0.00036259,30]
[394147102,1763322646086,-151.0,0.00036259,31]
[394147103,1763322646095,-151.0,0.00036259,31]
[394147104,1763322646104,-177.820604,0.00036259,31]
[394147105,1763322646113,-151.0,0.00036259,31]
[394147107,1763322646122,-177.820604,0.00036259,31]
[394147108,1763322646131,-151.0,0.00036259,31]
[394147109,1763322646141,-177.820604,0.00036259,31]
[394147110,1763322646150,-151.0,0.00036259,31]
[394147111,1763322646159,-153.633799,0.00036259,31]
[394147112,1763322646168,-177.820604,0.00036259,31]
[394147113,1763322646177,-151.0,0.00036259,31]
[394147114,1763322646187,-151.0,0.00036259,31]
[394147115,1763322646196,-151.0,0.00036259,31]
[394147116,1763322646206,-151.0,0.00036259,31]
[394147117,1763322646215,-151.0,0.00036259,31]
[394147118,1763322646227,-151.0,0.00036259,31]
[394147119,1763322646237,-151.0,0.00036259,31]
[394147120,1763322646246,-151.0,0.00036259,31]
[394147121,1763322646255,-151.0,0.00036259,31]
[394147122,1763322646265,-152.896676,0.00036259,31]
[394147123,1763322646275,-257.761001,0.00036259,31]
[394147124,1763322646285,-5000.0,0.00036273,2]
[394147125,1763322646295,-1195.10021,0.00036288,30]
[394147126,1763322646305,-5000.0,0.00036292,2]
[394147127,1763322646315,-190.18,0.000363,14]
[394147128,1763322646326,-2534.77,0.00036301,2]
[394147129,1763322646337,-151.0,0.00036301,31]
[394147130,1763322646347,-151.0,0.00036301,31]
[394147131,1763322646358,-151.0,0.00036301,31]
[394147132,1763322646368,-156.089534,0.00036301,31]
[394147133,1763322646378,-151.0,0.00036301,31]
[394147134,1763322646388,-151.0,0.00036301,31]
[394147135,1763322646398,-151.0,0.00036301,31]
[394147136,1763322646411,-151.0,0.00036301,31]